[Event "25e Open International Landes Côtes Sud - Soorts Hossegor"]
[Site "Hossegor, France"]
[Date "2018.05.21"]
[Round "7.3"]
[White "Martinet, Regis"]
[Black "Fantinel, Thibault"]
[Result "1-0"]
[TimeControl "90 minutes + 30 secondes par coup"]
[WhiteElo "2061"]
[BlackElo "2406"]

1. d4 {[%clk 01:30:55]} {[%emt 00:00:04]} Nf6 {[%clk 01:30:54]} {[%emt
00:00:06]} 2. c4 {[%clk 01:30:50]} {[%emt 00:00:35]} b6 {[%clk 01:31:20]}
{[%emt 00:00:05]} 3. Nf3 {[%clk 01:30:01]} {[%emt 00:01:19]} Bb7 {[%clk
01:31:46]} {[%emt 00:00:04]} 4. g3 {[%clk 01:29:25]} {[%emt 00:01:07]} g6
{[%clk 01:32:12]} {[%emt 00:00:04]} 5. Bg2 {[%clk 01:29:48]} {[%emt 00:00:07]}
Bg7 {[%clk 01:32:39]} {[%emt 00:00:03]} 6. Nc3 {[%clk 01:29:30]} {[%emt
00:00:47]} Ne4 {[%clk 01:32:56]} {[%emt 00:00:13]} 7. Nxe4 {[%clk 01:29:18]}
{[%emt 00:00:57]} Bxe4 {[%clk 01:33:24]} 8. O-O {[%clk 01:29:29]} {[%emt
00:00:06]} O-O {[%clk 01:33:51]} {[%emt 00:00:04]} 9. Bd2 {[%clk 01:28:26]}
{[%emt 00:01:33]} c5 {[%clk 01:24:43]} {[%emt 00:09:38]} 10. Bc3 {[%clk
01:27:14]} {[%emt 00:01:42]} Nc6 {[%clk 01:25:09]} {[%emt 00:00:04]} 11. e3
{[%clk 01:26:59]} {[%emt 00:00:44]} Rc8 {[%clk 01:21:39]} {[%emt 00:04:02]} 12.
Rc1 {[%clk 01:18:14]} {[%emt 00:09:14]} cxd4 {[%clk 01:15:18]} {[%emt
00:06:52]} 13. Nxd4 {[%clk 01:16:40]} {[%emt 00:02:03]} Bxg2 {[%clk 01:15:40]}
{[%emt 00:00:08]} 14. Kxg2 {[%clk 01:17:02]} {[%emt 00:00:08]} Ne5 {[%clk
01:16:08]} {[%emt 00:00:02]} 15. b3 {[%clk 01:17:14]} {[%emt 00:00:17]} d5
{[%clk 01:13:38]} {[%emt 00:03:01]} 16. f4 {[%clk 01:17:32]} {[%emt 00:00:11]}
Nd7 {[%clk 01:09:28]} {[%emt 00:04:41]} 17. cxd5 {[%clk 01:17:21]} {[%emt
00:00:41]} Nf6 {[%clk 01:08:52]} {[%emt 00:01:06]} 18. Nc6 {[%clk 01:09:45]}
{[%emt 00:08:05]} Qxd5+ {[%clk 01:09:09]} {[%emt 00:00:13]} 19. Qxd5 {[%clk
01:10:03]} {[%emt 00:00:11]} Nxd5 {[%clk 01:09:37]} {[%emt 00:00:03]} 20. Bd2
{[%clk 01:09:24]} {[%emt 00:01:09]} f5 {[%clk 01:06:01]} {[%emt 00:04:06]} 21.
Rfe1 {[%clk 01:04:01]} {[%emt 00:05:53]} Bb2 {[%clk 00:47:10]} {[%emt
00:19:20]} 22. Rc4 {[%clk 01:00:41]} {[%emt 00:03:50]} b5 {[%clk 00:37:46]}
{[%emt 00:09:55]} 23. Rc5 {[%clk 00:49:20]} {[%emt 00:11:50]} Ba3 {[%clk
00:28:00]} {[%emt 00:10:17]} 24. Rxb5 {[%clk 00:43:24]} {[%emt 00:06:23]} Rxc6
{[%clk 00:23:50]} {[%emt 00:04:43]} 25. Rxd5 {[%clk 00:43:47]} {[%emt
00:00:07]} Rc2 {[%clk 00:24:18]} {[%emt 00:00:02]} 26. Kf3 {[%clk 00:41:02]}
{[%emt 00:03:14]} Rxa2 {[%clk 00:24:00]} {[%emt 00:00:49]} 27. e4 {[%clk
00:40:58]} {[%emt 00:00:35]} Rb8 {[%clk 00:22:36]} {[%emt 00:01:54]} 28. exf5
{[%clk 00:39:06]} {[%emt 00:02:22]} gxf5 {[%clk 00:18:13]} {[%emt 00:04:53]} 29.
b4 {[%clk 00:35:27]} {[%emt 00:04:09]} Bxb4 {[%clk 00:10:41]} {[%emt 00:08:02]}
30. Bxb4 {[%clk 00:35:42]} {[%emt 00:00:15]} Rxb4 {[%clk 00:11:08]} {[%emt
00:00:03]} 31. Rxf5 {[%clk 00:36:03]} {[%emt 00:00:08]} Rb7 {[%clk 00:10:26]}
{[%emt 00:01:13]} 32. Rg5+ {[%clk 00:35:30]} {[%emt 00:01:02]} Kf7 {[%clk
00:10:49]} {[%emt 00:00:07]} 33. Rh5 {[%clk 00:35:55]} {[%emt 00:00:05]} Kg8
{[%clk 00:06:43]} {[%emt 00:04:37]} 34. Ree5 {[%clk 00:33:07]} {[%emt
00:03:17]} Ra6 {[%clk 00:06:12]} {[%emt 00:01:02]} 35. Rhg5+ {[%clk 00:33:21]}
{[%emt 00:00:15]} Rg6 {[%clk 00:05:57]} {[%emt 00:00:45]} 36. Rb5 {[%clk
00:32:09]} {[%emt 00:01:42]} Rxb5 {[%clk 00:05:18]} {[%emt 00:01:09]} 37. Rxb5
{[%clk 00:32:34]} {[%emt 00:00:05]} Kf7 {[%clk 00:05:36]} {[%emt 00:00:12]} 38.
Rb7 {[%clk 00:32:54]} {[%emt 00:00:10]} Ra6 {[%clk 00:05:59]} {[%emt 00:00:07]}
39. Kg4 {[%clk 00:33:04]} {[%emt 00:00:19]} Ra2 {[%clk 00:05:13]} {[%emt
00:01:17]} 40. h4 {[%clk 00:33:18]} {[%emt 00:00:15]} Ra3 {[%clk 00:05:24]}
{[%emt 00:00:20]} 41. h5 {[%clk 00:33:29]} {[%emt 00:00:18]} Ra5 {[%clk
00:05:02]} {[%emt 00:00:53]} 42. Kh4 {[%clk 00:32:57]} {[%emt 00:01:02]} Kf6
{[%clk 00:04:32]} {[%emt 00:01:00]} 43. Rc7 {[%clk 00:33:00]} {[%emt 00:00:26]}
Kf7 {[%clk 00:02:29]} {[%emt 00:02:34]} 44. g4 {[%clk 00:30:59]} {[%emt
00:02:30]} Ra6 {[%clk 00:01:33]} {[%emt 00:01:27]} 45. g5 {[%clk 00:29:35]}
{[%emt 00:01:52]} Ra5 {[%clk 00:01:29]} {[%emt 00:00:36]} 46. Kg4 {[%clk
00:27:27]} {[%emt 00:02:38]} Ra6 {[%clk 00:01:41]} {[%emt 00:00:18]} 47. Rc4
{[%clk 00:26:46]} {[%emt 00:01:11]} Rb6 {[%clk 00:01:05]} {[%emt 00:01:07]} 48.
Rc7 {[%clk 00:23:41]} {[%emt 00:03:35]} a5 {[%clk 00:00:59]} {[%emt 00:00:35]}
49. Ra7 {[%clk 00:24:02]} {[%emt 00:00:09]} Rb5 {[%clk 00:01:28]} {[%emt
00:00:01]} 50. Ra6 {[%clk 00:22:36]} {[%emt 00:01:56]} Rc5 {[%clk 00:01:46]}
{[%emt 00:00:12]} 51. h6 {[%clk 00:17:41]} {[%emt 00:05:24]} Rb5 {[%clk
00:01:46]} {[%emt 00:00:31]} 52. f5 {[%clk 00:17:54]} {[%emt 00:00:17]} Rb8
{[%clk 00:00:36]} {[%emt 00:01:40]} 53. g6+ {[%clk 00:17:38]} {[%emt 00:00:46]}
Kg8 {[%clk 00:00:33]} {[%emt 00:00:34]} 54. Rxa5 {[%clk 00:18:00]} {[%emt
00:00:08]} e6 {[%clk 00:00:41]} {[%emt 00:00:21]} 55. f6 {[%clk 00:16:50]}
{[%emt 00:01:39]} hxg6 {[%clk 00:01:02]} {[%emt 00:00:11]} 56. Kg5 {[%clk
00:17:16]} {[%emt 00:00:04]} Kh8 {[%clk 00:00:33]} {[%emt 00:01:00]} 57. Ra7
{[%clk 00:16:03]} {[%emt 00:01:43]} Rb2 {[%clk 00:00:32]} {[%emt 00:00:31]} 58.
f7 {[%clk 00:14:12]} {[%emt 00:02:20]} Rb8 {[%clk 00:00:31]} {[%emt 00:00:31]}
59. Re7 {[%clk 00:14:25]} {[%emt 00:00:16]} 1-0

[Event "25e Open International Landes Côtes Sud - Soorts Hossegor"]
[Site "Hossegor, France"]
[Date "2018.05.21"]
[Round "7.2"]
[White "Kirk, Ezra"]
[Black "Roselle, Tristan"]
[Result "0-1"]
[TimeControl "90 minutes + 30 secondes par coup"]
[WhiteElo "2420"]
[BlackElo "2110"]

1. d4 {[%clk 01:29:13]} {[%emt 00:00:55]} d5 {[%clk 01:30:47]} {[%emt
00:00:13]} 2. c4 {[%clk 01:29:40]} {[%emt 00:00:04]} e6 {[%clk 01:31:06]}
{[%emt 00:00:12]} 3. Nc3 {[%clk 01:29:40]} {[%emt 00:00:29]} Nf6 {[%clk
01:31:26]} {[%emt 00:00:09]} 4. cxd5 {[%clk 01:28:15]} {[%emt 00:01:57]} Nxd5
{[%clk 01:31:47]} {[%emt 00:00:08]} 5. e4 {[%clk 01:25:14]} {[%emt 00:03:30]}
Nxc3 {[%clk 01:31:26]} {[%emt 00:00:52]} 6. bxc3 {[%clk 01:25:06]} {[%emt
00:00:39]} c5 {[%clk 01:30:44]} {[%emt 00:01:12]} 7. Nf3 {[%clk 01:25:20]}
{[%emt 00:00:15]} cxd4 {[%clk 01:31:06]} {[%emt 00:00:08]} 8. cxd4 {[%clk
01:25:46]} {[%emt 00:00:04]} Bb4+ {[%clk 01:31:28]} {[%emt 00:00:08]} 9. Bd2
{[%clk 01:26:11]} {[%emt 00:00:05]} Bxd2+ {[%clk 01:31:48]} {[%emt 00:00:09]}
10. Qxd2 {[%clk 01:26:36]} {[%emt 00:00:05]} O-O {[%clk 01:32:07]} {[%emt
00:00:11]} 11. Bc4 {[%clk 01:26:01]} {[%emt 00:01:04]} b6 {[%clk 01:31:52]}
{[%emt 00:00:47]} 12. O-O {[%clk 01:26:07]} {[%emt 00:00:23]} Bb7 {[%clk
01:32:08]} {[%emt 00:00:15]} 13. Rfe1 {[%clk 01:25:45]} {[%emt 00:00:51]} Nd7
{[%clk 01:32:29]} {[%emt 00:00:10]} 14. Rad1 {[%clk 01:23:06]} {[%emt
00:03:09]} Rc8 {[%clk 01:26:10]} {[%emt 00:06:50]} 15. Bb3 {[%clk 01:21:49]}
{[%emt 00:01:47]} Qc7 {[%clk 01:26:15]} {[%emt 00:00:24]} 16. Qg5 {[%clk
01:14:07]} {[%emt 00:08:12]} Rfe8 {[%clk 01:21:55]} {[%emt 00:04:51]} 17. d5
{[%clk 00:52:36]} {[%emt 00:22:01]} exd5 {[%clk 01:18:05]} {[%emt 00:04:20]} 18.
exd5 {[%clk 00:50:01]} {[%emt 00:03:05]} Qd6 {[%clk 01:13:11]} {[%emt
00:05:23]} 19. Nd4 {[%clk 00:45:25]} {[%emt 00:05:05]} Rxe1+ {[%clk 01:09:08]}
{[%emt 00:04:33]} 20. Rxe1 {[%clk 00:45:36]} {[%emt 00:00:19]} Qb4 {[%clk
01:01:27]} {[%emt 00:08:10]} 21. Qe3 {[%clk 00:38:55]} {[%emt 00:07:11]} Kf8
{[%clk 00:54:52]} {[%emt 00:07:06]} 22. Nf5 {[%clk 00:28:46]} {[%emt 00:10:37]}
Nf6 {[%clk 00:52:03]} {[%emt 00:03:21]} 23. a3 {[%clk 00:13:25]} {[%emt
00:15:52]} Qe4 {[%clk 00:44:55]} {[%emt 00:07:37]} 24. Qxe4 {[%clk 00:13:06]}
{[%emt 00:00:49]} Nxe4 {[%clk 00:45:17]} {[%emt 00:00:08]} 25. f3 {[%clk
00:11:05]} {[%emt 00:02:32]} Nc5 {[%clk 00:43:16]} {[%emt 00:02:31]} 26. Bc4
{[%clk 00:09:45]} {[%emt 00:01:50]} g6 {[%clk 00:42:54]} {[%emt 00:00:51]} 27.
Ne3 {[%clk 00:07:55]} {[%emt 00:02:20]} Rd8 {[%clk 00:42:01]} {[%emt 00:01:23]}
28. Kf2 {[%clk 00:07:49]} {[%emt 00:00:35]} Rc8 {[%clk 00:39:35]} {[%emt
00:02:57]} 29. Rd1 {[%clk 00:07:10]} {[%emt 00:01:09]} Rd8 {[%clk 00:39:37]}
{[%emt 00:00:29]} 30. h4 {[%clk 00:07:01]} {[%emt 00:00:39]} h5 {[%clk
00:39:45]} {[%emt 00:00:21]} 31. Kg3 {[%clk 00:04:00]} {[%emt 00:03:31]} Ba6
{[%clk 00:38:13]} {[%emt 00:02:02]} 32. Bxa6 {[%clk 00:04:19]} {[%emt
00:00:11]} Nxa6 {[%clk 00:38:36]} {[%emt 00:00:07]} 33. Kf4 {[%clk 00:04:34]}
{[%emt 00:00:16]} Nc7 {[%clk 00:37:17]} {[%emt 00:01:49]} 34. g4 {[%clk
00:03:30]} {[%emt 00:01:34]} hxg4 {[%clk 00:37:39]} {[%emt 00:00:08]} 35. fxg4
{[%clk 00:03:53]} {[%emt 00:00:07]} Nb5 {[%clk 00:37:54]} {[%emt 00:00:15]} 36.
Rd3 {[%clk 00:04:15]} {[%emt 00:00:07]} Ke7 {[%clk 00:37:29]} {[%emt 00:00:55]}
37. h5 {[%clk 00:04:28]} {[%emt 00:00:17]} gxh5 {[%clk 00:36:25]} {[%emt
00:01:33]} 38. gxh5 {[%clk 00:04:54]} {[%emt 00:00:04]} Nd6 {[%clk 00:35:34]}
{[%emt 00:01:21]} 39. Nf5+ {[%clk 00:04:43]} {[%emt 00:00:41]} Nxf5 {[%clk
00:34:26]} {[%emt 00:01:41]} 40. Kxf5 {[%clk 00:05:08]} {[%emt 00:00:03]} Rh8
{[%clk 00:34:34]} {[%emt 00:00:22]} 41. d6+ {[%clk 00:05:05]} {[%emt 00:00:33]}
Kd7 {[%clk 00:34:49]} {[%emt 00:00:16]} 42. Kg5 {[%clk 00:04:58]} {[%emt
00:00:37]} Rg8+ {[%clk 00:35:09]} {[%emt 00:00:09]} 43. Kf6 {[%clk 00:05:00]}
{[%emt 00:00:28]} Rh8 {[%clk 00:35:24]} {[%emt 00:00:16]} 44. Rd5 {[%clk
00:04:49]} {[%emt 00:00:41]} Rh7 {[%clk 00:35:46]} {[%emt 00:00:08]} 45. a4
{[%clk 00:04:04]} {[%emt 00:01:15]} a6 {[%clk 00:35:48]} {[%emt 00:00:27]} 46.
Kg5 {[%clk 00:04:29]} {[%emt 00:00:05]} Rh8 {[%clk 00:36:04]} {[%emt 00:00:14]}
47. Rd4 {[%clk 00:03:25]} {[%emt 00:01:34]} Rg8+ {[%clk 00:35:24]} {[%emt
00:01:10]} 48. Kf6 {[%clk 00:02:24]} {[%emt 00:01:32]} Rh8 {[%clk 00:35:45]}
{[%emt 00:00:09]} 49. Kg5 {[%clk 00:00:34]} {[%emt 00:02:20]} Rg8+ {[%clk
00:36:10]} {[%emt 00:00:05]} 50. Kf4 {[%clk 00:00:43]} {[%emt 00:00:21]} Rh8
{[%clk 00:36:30]} {[%emt 00:00:09]} 51. Rd5 {[%clk 00:01:04]} {[%emt 00:00:09]}
Rh6 {[%clk 00:32:43]} {[%emt 00:04:17]} 52. Ke4 {[%clk 00:01:10]} {[%emt
00:00:25]} Re6+ {[%clk 00:31:59]} {[%emt 00:01:13]} 53. Kf4 {[%clk 00:00:44]}
{[%emt 00:00:56]} Rh6 {[%clk 00:32:14]} {[%emt 00:00:15]} 54. Ke3 {[%clk
00:00:45]} {[%emt 00:00:29]} Re6+ {[%clk 00:32:34]} {[%emt 00:00:10]} 55. Kd4
{[%clk 00:00:42]} {[%emt 00:00:33]} Re1 {[%clk 00:31:55]} {[%emt 00:01:09]} 56.
Rf5 {[%clk 00:00:44]} {[%emt 00:00:29]} Ke6 {[%clk 00:30:06]} {[%emt 00:02:19]}
57. h6 {[%clk 00:00:35]} {[%emt 00:00:40]} Kxf5 {[%clk 00:25:12]} {[%emt
00:05:24]} 58. h7 {[%clk 00:01:00]} {[%emt 00:00:04]} Re8 {[%clk 00:25:32]}
{[%emt 00:00:10]} 0-1